[Event "Late-Titled-Tuesday-Blitz-April-30-2024"]
[Site "Chess.com"]
[Date "2024.04.30"]
[Round "11"]
[White "jcibarra"]
[Black "lamomiajunior"]
[Result "1-0"]
[WhiteElo "2997"]
[BlackElo "2744"]
[TimeControl "180+1"]
[EndTime "16:04:00 PDT"]
[Termination "jcibarra won by resignation"]

1. e4 {[%clk 0:03:00.9]} 1... c5 {[%clk 0:02:59.6]} 2. Nf3 {[%clk 0:03:01.4]}
2... d6 {[%clk 0:02:59.8]} 3. d4 {[%clk 0:03:01.5]} 3... cxd4 {[%clk 0:03:00.7]}
4. Nxd4 {[%clk 0:03:02.1]} 4... Nf6 {[%clk 0:03:01]} 5. Nc3 {[%clk 0:03:02.5]}
5... a6 {[%clk 0:03:01.3]} 6. g3 {[%clk 0:03:01]} 6... Nc6 {[%clk 0:02:59.5]} 7.
Bg2 {[%clk 0:03:00.1]} 7... Bd7 {[%clk 0:02:51.7]} 8. O-O {[%clk 0:02:57.7]}
8... g6 {[%clk 0:02:52.4]} 9. Nd5 {[%clk 0:02:51.6]} 9... Bg7 {[%clk 0:02:51.2]}
10. Be3 {[%clk 0:02:39.7]} 10... Nxd5 {[%clk 0:02:30.7]} 11. exd5 {[%clk
0:02:39.5]} 11... Ne5 {[%clk 0:02:29.8]} 12. c3 {[%clk 0:02:37.5]} 12... O-O
{[%clk 0:02:28.8]} 13. Re1 {[%clk 0:02:35.2]} 13... Rc8 {[%clk 0:02:27.9]} 14.
a4 {[%clk 0:02:29.8]} 14... Nc4 {[%clk 0:02:25.9]} 15. Bc1 {[%clk 0:02:27.4]}
15... Re8 {[%clk 0:02:22.8]} 16. Rb1 {[%clk 0:02:05.9]} 16... Qb6 {[%clk
0:02:22.1]} 17. b3 {[%clk 0:02:01.6]} 17... Ne5 {[%clk 0:02:14]} 18. Qd2 {[%clk
0:01:47.9]} 18... Bxa4 {[%clk 0:02:07.7]} 19. Bb2 {[%clk 0:01:35.8]} 19... Bd7
{[%clk 0:02:02.7]} 20. h3 {[%clk 0:01:36.4]} 20... f5 {[%clk 0:01:35.5]} 21. Kh2
{[%clk 0:01:33.5]} 21... Qa5 {[%clk 0:01:30.5]} 22. f4 {[%clk 0:01:31.7]} 22...
Nf7 {[%clk 0:01:30.1]} 23. b4 {[%clk 0:01:28.3]} 23... Qb6 {[%clk 0:01:27]} 24.
Ne6 {[%clk 0:01:27.2]} 24... Bxe6 {[%clk 0:01:26.8]} 25. Rxe6 {[%clk 0:01:20.1]}
25... Qc7 {[%clk 0:01:26.9]} 26. Rc1 {[%clk 0:01:17.1]} 26... b5 {[%clk
0:01:25.6]} 27. Bf3 {[%clk 0:01:15]} 27... Qc4 {[%clk 0:01:20.3]} 28. Be2 {[%clk
0:01:11.1]} 28... Qc7 {[%clk 0:01:08.9]} 29. h4 {[%clk 0:01:11]} 29... Nd8
{[%clk 0:01:08.3]} 30. Re3 {[%clk 0:01:09.4]} 30... e5 {[%clk 0:01:08.7]} 31.
dxe6 {[%clk 0:01:07.5]} 31... Nxe6 {[%clk 0:01:07.7]} 32. Bf3 {[%clk 0:01:00]}
32... Nf8 {[%clk 0:00:58]} 33. Rce1 {[%clk 0:00:59.6]} 33... Rxe3 {[%clk
0:00:57.5]} 34. Rxe3 {[%clk 0:01:00.3]} 34... Qd7 {[%clk 0:00:49.6]} 35. Bd5+
{[%clk 0:00:59.4]} 35... Kh8 {[%clk 0:00:49.5]} 36. Qe2 {[%clk 0:00:59.6]} 36...
Bf6 {[%clk 0:00:45.7]} 37. Re7 {[%clk 0:00:48.9]} 37... Re8 {[%clk 0:00:12.8]}
38. Rxe8 {[%clk 0:00:34.4]} 1-0

[Event "Late-Titled-Tuesday-Blitz-April-30-2024"]
[Site "Chess.com"]
[Date "2024.04.30"]
[Round "11"]
[White "yaguigor"]
[Black "ab-lsv"]
[Result "1-0"]
[WhiteElo "2559"]
[BlackElo "2386"]
[TimeControl "180+1"]
[EndTime "16:04:00 PDT"]
[Termination "yaguigor won by resignation"]

1. Nf3 {[%clk 0:03:00.9]} 1... c5 {[%clk 0:02:59.5]} 2. e4 {[%clk 0:02:59.3]}
2... g6 {[%clk 0:02:57.9]} 3. d4 {[%clk 0:02:58.3]} 3... cxd4 {[%clk 0:02:54.7]}
4. Nxd4 {[%clk 0:02:59.2]} 4... Nc6 {[%clk 0:02:51.7]} 5. c4 {[%clk 0:02:58.2]}
5... d6 {[%clk 0:02:46.3]} 6. Nc3 {[%clk 0:02:56.3]} 6... Nxd4 {[%clk
0:02:42.9]} 7. Qxd4 {[%clk 0:02:54.9]} 7... Nf6 {[%clk 0:02:43.2]} 8. f3 {[%clk
0:02:48.9]} 8... Bg7 {[%clk 0:02:43.4]} 9. Be3 {[%clk 0:02:49.4]} 9... O-O
{[%clk 0:02:43.4]} 10. Qd2 {[%clk 0:02:49.3]} 10... a6 {[%clk 0:02:42.9]} 11.
Rc1 {[%clk 0:02:47.9]} 11... Qa5 {[%clk 0:02:37.8]} 12. b3 {[%clk 0:02:43]}
12... Be6 {[%clk 0:02:37.2]} 13. Na4 {[%clk 0:02:32.5]} 13... Qxd2+ {[%clk
0:02:38.1]} 14. Kxd2 {[%clk 0:02:32.3]} 14... Nd7 {[%clk 0:02:37.9]} 15. g4
{[%clk 0:02:28.6]} 15... f5 {[%clk 0:02:36.4]} 16. exf5 {[%clk 0:02:12.9]} 16...
gxf5 {[%clk 0:02:36]} 17. h3 {[%clk 0:02:10.3]} 17... d5 {[%clk 0:02:28.3]} 18.
Nc5 {[%clk 0:01:56.4]} 18... Nxc5 {[%clk 0:02:21.4]} 19. Bxc5 {[%clk 0:01:57.3]}
19... Bh6+ {[%clk 0:02:08.3]} 20. Be3 {[%clk 0:01:53.5]} 20... Bxe3+ {[%clk
0:02:07.1]} 21. Kxe3 {[%clk 0:01:52.7]} 21... Rad8 {[%clk 0:01:58.8]} 22. cxd5
{[%clk 0:01:50.1]} 22... Bxd5 {[%clk 0:01:56.7]} 23. Bc4 {[%clk 0:01:50.7]}
23... fxg4 {[%clk 0:01:51.8]} 24. Bxd5+ {[%clk 0:01:47.5]} 24... Rxd5 {[%clk
0:01:52.1]} 25. hxg4 {[%clk 0:01:45.3]} 25... Rfd8 {[%clk 0:01:37.7]} 26. Rc7
{[%clk 0:01:40.5]} 26... R8d7 {[%clk 0:01:08.1]} 27. Rxd7 {[%clk 0:01:36.8]}
27... Rxd7 {[%clk 0:01:08.3]} 28. Rh6 {[%clk 0:01:35.9]} 28... Kg7 {[%clk
0:01:06.9]} 29. g5 {[%clk 0:01:33.4]} 29... e5 {[%clk 0:00:53.6]} 30. Re6 {[%clk
0:01:31.6]} 30... Rd1 {[%clk 0:00:33.6]} 31. Rxe5 {[%clk 0:01:24.4]} 31... Ra1
{[%clk 0:00:33.1]} 32. Kf4 {[%clk 0:01:19.2]} 32... Rxa2 {[%clk 0:00:29.6]} 33.
Re7+ {[%clk 0:01:18.4]} 33... Kg6 {[%clk 0:00:29.5]} 34. Rxb7 {[%clk 0:01:19.1]}
34... Rb2 {[%clk 0:00:26.9]} 35. Rb6+ {[%clk 0:01:18.4]} 35... Kg7 {[%clk
0:00:26.4]} 36. Kf5 {[%clk 0:01:18.6]} 36... a5 {[%clk 0:00:24.2]} 37. Rb7+
{[%clk 0:01:17.4]} 37... Kf8 {[%clk 0:00:20.9]} 38. Kf6 {[%clk 0:01:11.8]} 38...
Ke8 {[%clk 0:00:20.9]} 39. Rxh7 {[%clk 0:01:09.3]} 39... Rxb3 {[%clk 0:00:21]}
40. Rh8+ {[%clk 0:01:09.5]} 40... Kd7 {[%clk 0:00:21]} 41. f4 {[%clk 0:01:09.7]}
41... a4 {[%clk 0:00:19.6]} 42. Ra8 {[%clk 0:01:07.5]} 42... Rb6+ {[%clk
0:00:17.4]} 43. Kf7 {[%clk 0:01:05.1]} 43... Rb4 {[%clk 0:00:16.6]} 44. f5
{[%clk 0:01:04.1]} 1-0

[Event "Late-Titled-Tuesday-Blitz-April-30-2024"]
[Site "Chess.com"]
[Date "2024.04.30"]
[Round "11"]
[White "mjelcic"]
[Black "VirtualCoach"]
[Result "0-1"]
[WhiteElo "2313"]
[BlackElo "2102"]
[TimeControl "180+1"]
[EndTime "16:04:05 PDT"]
[Termination "VirtualCoach won by checkmate"]

1. c4 {[%clk 0:02:59.8]} 1... Nf6 {[%clk 0:02:59]} 2. Nc3 {[%clk 0:02:59.6]}
2... e5 {[%clk 0:02:58.1]} 3. e4 {[%clk 0:02:59.5]} 3... d6 {[%clk 0:02:57.8]}
4. g3 {[%clk 0:02:59.4]} 4... g6 {[%clk 0:02:57.7]} 5. Bg2 {[%clk 0:02:59.7]}
5... Bg7 {[%clk 0:02:58]} 6. Nge2 {[%clk 0:03:00.3]} 6... O-O {[%clk 0:02:58.6]}
7. O-O {[%clk 0:03:00.8]} 7... Nbd7 {[%clk 0:02:58.7]} 8. d3 {[%clk 0:03:01.3]}
8... c6 {[%clk 0:02:58.7]} 9. h3 {[%clk 0:02:58.1]} 9... Ne8 {[%clk 0:02:58.5]}
10. f4 {[%clk 0:02:57.1]} 10... f5 {[%clk 0:02:48.6]} 11. Be3 {[%clk 0:02:56.8]}
11... Ndf6 {[%clk 0:02:44.7]} 12. Qd2 {[%clk 0:02:54.3]} 12... Be6 {[%clk
0:02:33.8]} 13. b3 {[%clk 0:02:42.5]} 13... b6 {[%clk 0:02:25.4]} 14. d4 {[%clk
0:02:41.6]} 14... Nxe4 {[%clk 0:02:21.5]} 15. Nxe4 {[%clk 0:02:40.7]} 15... fxe4
{[%clk 0:02:21.7]} 16. Bxe4 {[%clk 0:02:41]} 16... d5 {[%clk 0:02:21]} 17. cxd5
{[%clk 0:02:37.3]} 17... cxd5 {[%clk 0:02:15.2]} 18. Bg2 {[%clk 0:02:35.9]}
18... e4 {[%clk 0:02:13.1]} 19. Rac1 {[%clk 0:02:34.4]} 19... Qd7 {[%clk
0:02:12.4]} 20. Kh2 {[%clk 0:02:34]} 20... Nd6 {[%clk 0:02:10.2]} 21. Rc2 {[%clk
0:02:27.2]} 21... Rac8 {[%clk 0:02:08.2]} 22. Rfc1 {[%clk 0:02:27.4]} 22... Nf5
{[%clk 0:02:02.6]} 23. Kg1 {[%clk 0:02:13.5]} 23... Nxe3 {[%clk 0:01:48.8]} 24.
Qxe3 {[%clk 0:02:14.4]} 24... Bxh3 {[%clk 0:01:48.6]} 25. Nc3 {[%clk 0:01:54.1]}
25... Bxg2 {[%clk 0:01:41.7]} 26. Kxg2 {[%clk 0:01:52.6]} 26... g5 {[%clk
0:01:32.9]} 27. fxg5 {[%clk 0:01:51.2]} 27... Rf3 {[%clk 0:01:32.1]} 28. Qe1
{[%clk 0:01:48.8]} 28... Bxd4 {[%clk 0:01:26.9]} 29. Nxe4 {[%clk 0:01:48.4]}
29... Rxc2+ {[%clk 0:01:21.8]} 30. Rxc2 {[%clk 0:01:47.3]} 30... dxe4 {[%clk
0:01:17.4]} 31. Qxe4 {[%clk 0:01:48.2]} 31... Re3 {[%clk 0:00:54.7]} 32. Qf4
{[%clk 0:01:38.5]} 32... Re1 {[%clk 0:00:39.9]} 33. Rc7 {[%clk 0:00:15.1]} 33...
Rg1+ {[%clk 0:00:32.7]} 34. Kh2 {[%clk 0:00:12.7]} 34... Rh1+ {[%clk 0:00:29.8]}
35. Kxh1 {[%clk 0:00:12.1]} 35... Qh3# {[%clk 0:00:29.6]} 0-1

[Event "Late-Titled-Tuesday-Blitz-April-30-2024"]
[Site "Chess.com"]
[Date "2024.04.30"]
[Round "11"]
[White "egnfanclub"]
[Black "AlainBruxelles"]
[Result "1-0"]
[WhiteElo "2356"]
[BlackElo "2242"]
[TimeControl "180+1"]
[EndTime "16:04:18 PDT"]
[Termination "egnfanclub won by resignation"]

1. e4 {[%clk 0:03:00.9]} 1... c5 {[%clk 0:02:57.4]} 2. Nc3 {[%clk 0:03:00.4]}
2... Nc6 {[%clk 0:02:56.9]} 3. f4 {[%clk 0:03:00.4]} 3... g6 {[%clk 0:02:56.6]}
4. Nf3 {[%clk 0:03:00.6]} 4... Bg7 {[%clk 0:02:57.3]} 5. Bc4 {[%clk 0:03:01.2]}
5... e6 {[%clk 0:02:56.4]} 6. f5 {[%clk 0:03:01.1]} 6... Nd4 {[%clk 0:02:43.3]}
7. fxe6 {[%clk 0:02:21.6]} 7... dxe6 {[%clk 0:02:37.6]} 8. d3 {[%clk 0:02:21.4]}
8... Ne7 {[%clk 0:02:34.2]} 9. O-O {[%clk 0:02:21.5]} 9... O-O {[%clk
0:02:33.2]} 10. Bg5 {[%clk 0:02:18.7]} 10... a6 {[%clk 0:02:27.9]} 11. a4 {[%clk
0:02:16.9]} 11... Bd7 {[%clk 0:02:20.4]} 12. Qd2 {[%clk 0:02:16.1]} 12... b5
{[%clk 0:02:08.4]} 13. Bb3 {[%clk 0:02:05.8]} 13... Nxb3 {[%clk 0:02:00.6]} 14.
cxb3 {[%clk 0:02:06.7]} 14... Bc6 {[%clk 0:01:53.1]} 15. axb5 {[%clk 0:02:00.4]}
15... axb5 {[%clk 0:01:51.3]} 16. Rxa8 {[%clk 0:01:59.8]} 16... Bxa8 {[%clk
0:01:51.3]} 17. Nxb5 {[%clk 0:01:58.4]} 17... Qd7 {[%clk 0:01:48.5]} 18. Nc3
{[%clk 0:01:53.6]} 18... Nc6 {[%clk 0:01:47.9]} 19. Na4 {[%clk 0:01:15.9]} 19...
Qa7 {[%clk 0:01:33.6]} 20. Be3 {[%clk 0:01:05.5]} 20... Nd4 {[%clk 0:01:32.4]}
21. Qf2 {[%clk 0:00:59.2]} 21... e5 {[%clk 0:01:29.9]} 22. Rc1 {[%clk
0:00:43.6]} 22... f5 {[%clk 0:01:25.9]} 23. Nxc5 {[%clk 0:00:39]} 23... fxe4
{[%clk 0:01:20.5]} 24. Nxe4 {[%clk 0:00:37.3]} 24... Nxf3+ {[%clk 0:00:59.8]}
25. gxf3 {[%clk 0:00:36.8]} 25... Qf7 {[%clk 0:00:56.5]} 26. Kg2 {[%clk
0:00:36.7]} 26... Qxb3 {[%clk 0:00:55.9]} 27. Rc7 {[%clk 0:00:33.1]} 27... Qxd3
{[%clk 0:00:50.7]} 28. Ng5 {[%clk 0:00:30.4]} 28... e4 {[%clk 0:00:47.4]} 29.
Rxg7+ {[%clk 0:00:26.8]} 29... Kxg7 {[%clk 0:00:43.6]} 30. Ne6+ {[%clk
0:00:27.1]} 30... Kg8 {[%clk 0:00:44.2]} 31. Nxf8 {[%clk 0:00:26.7]} 31... exf3+
{[%clk 0:00:44.3]} 32. Kg3 {[%clk 0:00:24.1]} 32... Kxf8 {[%clk 0:00:42]} 33.
Bh6+ {[%clk 0:00:21.3]} 33... Kg8 {[%clk 0:00:39.5]} 34. Qc5 {[%clk 0:00:20.5]}
34... f2+ {[%clk 0:00:34.6]} 35. Kh4 {[%clk 0:00:17.9]} 35... Qe4+ {[%clk
0:00:31.6]} 36. Kg3 {[%clk 0:00:16.8]} 36... f1=Q {[%clk 0:00:30]} 37. Qc8+
{[%clk 0:00:16]} 37... Kf7 {[%clk 0:00:26.8]} 38. Qf8+ {[%clk 0:00:16.6]} 38...
Ke6 {[%clk 0:00:26.1]} 39. Qxf1 {[%clk 0:00:17.5]} 39... Qd3+ {[%clk 0:00:24.9]}
40. Qxd3 {[%clk 0:00:14.2]} 1-0

[Event "Late-Titled-Tuesday-Blitz-April-30-2024"]
[Site "Chess.com"]
[Date "2024.04.30"]
[Round "11"]
[White "BeanScreen"]
[Black "Krlence"]
[Result "1-0"]
[WhiteElo "2674"]
[BlackElo "2502"]
[TimeControl "180+1"]
[EndTime "16:04:25 PDT"]
[Termination "BeanScreen won by checkmate"]

1. e4 {[%clk 0:03:00.9]} 1... d5 {[%clk 0:02:59.7]} 2. exd5 {[%clk 0:03:01.8]}
2... Qxd5 {[%clk 0:03:00.4]} 3. Nc3 {[%clk 0:03:01.9]} 3... Qd6 {[%clk
0:03:00.3]} 4. d4 {[%clk 0:03:02.8]} 4... c6 {[%clk 0:03:00.6]} 5. Nf3 {[%clk
0:03:02.5]} 5... Nf6 {[%clk 0:03:01.2]} 6. g3 {[%clk 0:02:58.8]} 6... Bg4 {[%clk
0:03:00.6]} 7. Bf4 {[%clk 0:02:57.4]} 7... Qd8 {[%clk 0:03:00.5]} 8. Bg2 {[%clk
0:02:56.4]} 8... e6 {[%clk 0:03:00.7]} 9. h3 {[%clk 0:02:48.5]} 9... Bxf3 {[%clk
0:02:57.9]} 10. Qxf3 {[%clk 0:02:42.4]} 10... Bd6 {[%clk 0:02:58]} 11. O-O-O
{[%clk 0:02:41.1]} 11... Bxf4+ {[%clk 0:02:57.6]} 12. Qxf4 {[%clk 0:02:42]}
12... Nbd7 {[%clk 0:02:56.8]} 13. g4 {[%clk 0:02:26.4]} 13... O-O {[%clk
0:02:54.6]} 14. h4 {[%clk 0:02:24.2]} 14... Nd5 {[%clk 0:02:54.4]} 15. Nxd5
{[%clk 0:02:21.9]} 15... cxd5 {[%clk 0:02:54.1]} 16. Kb1 {[%clk 0:02:19.3]}
16... Rc8 {[%clk 0:02:53.1]} 17. g5 {[%clk 0:02:09.5]} 17... Qc7 {[%clk
0:02:42.9]} 18. Qd2 {[%clk 0:02:09.6]} 18... Nb6 {[%clk 0:02:41]} 19. h5 {[%clk
0:01:42.1]} 19... Nc4 {[%clk 0:02:40.4]} 20. Qe2 {[%clk 0:01:41.5]} 20... Qb6
{[%clk 0:02:35.1]} 21. c3 {[%clk 0:01:40.9]} 21... Qb5 {[%clk 0:02:20.9]} 22.
Ka1 {[%clk 0:01:39.5]} 22... Nd6 {[%clk 0:02:20.5]} 23. Qg4 {[%clk 0:00:56.1]}
23... Nf5 {[%clk 0:01:58.3]} 24. g6 {[%clk 0:00:50.1]} 24... h6 {[%clk
0:01:57.4]} 25. Rde1 {[%clk 0:00:43.1]} 25... Rc6 {[%clk 0:01:56.1]} 26. Bf1
{[%clk 0:00:36.5]} 26... Qa5 {[%clk 0:01:51.1]} 27. Bd3 {[%clk 0:00:35.7]} 27...
Rxc3 {[%clk 0:01:34]} 28. gxf7+ {[%clk 0:00:35.2]} 28... Rxf7 {[%clk 0:01:28.1]}
29. Bxf5 {[%clk 0:00:29.6]} 29... Rxf5 {[%clk 0:01:07.1]} 30. Rxe6 {[%clk
0:00:22.7]} 30... Rcf3 {[%clk 0:01:06.8]} 31. Rc1 {[%clk 0:00:10.1]} 31... Qd8
{[%clk 0:00:57.1]} 32. Qg6 {[%clk 0:00:09.6]} 32... Rf8 {[%clk 0:00:52.3]} 33.
Rg1 {[%clk 0:00:08.7]} 33... Qd7 {[%clk 0:00:48.2]} 34. Rge1 {[%clk 0:00:07.7]}
34... Rxf2 {[%clk 0:00:43.1]} 35. a3 {[%clk 0:00:07.7]} 35... Qb5 {[%clk
0:00:38.9]} 36. Qb1 {[%clk 0:00:07.8]} 36... Rd2 {[%clk 0:00:31.9]} 37. Rg1
{[%clk 0:00:05.7]} 37... Rdf2 {[%clk 0:00:28.5]} 38. Rxg7+ {[%clk 0:00:05.4]}
38... Kxg7 {[%clk 0:00:24.7]} 39. Qg6+ {[%clk 0:00:06]} 39... Kh8 {[%clk
0:00:25.6]} 40. Qxh6+ {[%clk 0:00:06.4]} 40... Kg8 {[%clk 0:00:26.1]} 41. Qg5+
{[%clk 0:00:06.8]} 41... Kf7 {[%clk 0:00:24.1]} 42. Qg6# {[%clk 0:00:06.5]} 1-0

[Event "Late-Titled-Tuesday-Blitz-April-30-2024"]
[Site "Chess.com"]
[Date "2024.04.30"]
[Round "11"]
[White "IlanSchnaider"]
[Black "Djager97"]
[Result "1-0"]
[WhiteElo "2739"]
[BlackElo "2576"]
[TimeControl "180+1"]
[EndTime "16:04:28 PDT"]
[Termination "IlanSchnaider won on time"]

1. Nf3 {[%clk 0:02:56.8]} 1... d5 {[%clk 0:02:59.9]} 2. g3 {[%clk 0:02:53.9]}
2... Nd7 {[%clk 0:02:59.5]} 3. d4 {[%clk 0:02:52]} 3... Nb6 {[%clk 0:02:59.4]}
4. Nc3 {[%clk 0:02:50.3]} 4... Nf6 {[%clk 0:02:57.1]} 5. a4 {[%clk 0:02:48]}
5... a5 {[%clk 0:02:56.4]} 6. Bf4 {[%clk 0:02:24.1]} 6... c6 {[%clk 0:02:44.9]}
7. Bg2 {[%clk 0:02:20.6]} 7... Bf5 {[%clk 0:02:44.3]} 8. Nh4 {[%clk 0:02:19.5]}
8... Bg4 {[%clk 0:02:44.9]} 9. h3 {[%clk 0:02:19.9]} 9... Bh5 {[%clk 0:02:45.3]}
10. O-O {[%clk 0:02:16.7]} 10... e6 {[%clk 0:02:44.9]} 11. Qd3 {[%clk
0:02:08.9]} 11... Bd6 {[%clk 0:02:41.6]} 12. Bg5 {[%clk 0:01:57.9]} 12... h6
{[%clk 0:02:34.9]} 13. Bxf6 {[%clk 0:01:57]} 13... Qxf6 {[%clk 0:02:35.8]} 14.
e4 {[%clk 0:01:57.4]} 14... Qd8 {[%clk 0:02:27.7]} 15. Rfe1 {[%clk 0:01:40.7]}
15... O-O {[%clk 0:02:26.7]} 16. Nf3 {[%clk 0:01:35.7]} 16... Bg6 {[%clk
0:02:26.1]} 17. Qe2 {[%clk 0:01:25.9]} 17... Nd7 {[%clk 0:02:12.1]} 18. Rad1
{[%clk 0:01:17]} 18... Qb6 {[%clk 0:02:10.1]} 19. Rb1 {[%clk 0:01:07.4]} 19...
Qb4 {[%clk 0:02:03.3]} 20. Qe3 {[%clk 0:00:45.9]} 20... dxe4 {[%clk 0:02:01.8]}
21. Nh4 {[%clk 0:00:45.7]} 21... Bh7 {[%clk 0:01:55.4]} 22. Nxe4 {[%clk
0:00:45.7]} 22... Bxe4 {[%clk 0:01:36.2]} 23. Bxe4 {[%clk 0:00:41.1]} 23... Qxa4
{[%clk 0:01:34.4]} 24. Bd3 {[%clk 0:00:39.2]} 24... Qb4 {[%clk 0:01:26.1]} 25.
c3 {[%clk 0:00:38.2]} 25... Qb6 {[%clk 0:01:24.1]} 26. g4 {[%clk 0:00:35.6]}
26... Qc7 {[%clk 0:01:20.7]} 27. Ng2 {[%clk 0:00:34.3]} 27... e5 {[%clk
0:01:13.9]} 28. g5 {[%clk 0:00:30.6]} 28... exd4 {[%clk 0:01:06.8]} 29. Qe4
{[%clk 0:00:27.2]} 29... f5 {[%clk 0:01:00.2]} 30. Qe6+ {[%clk 0:00:27.3]} 30...
Kh8 {[%clk 0:00:44.9]} 31. Nh4 {[%clk 0:00:27.5]} 31... hxg5 {[%clk 0:00:12.8]}
32. Ng6+ {[%clk 0:00:27.5]} 32... Kh7 {[%clk 0:00:13.4]} 33. Nxf8+ {[%clk
0:00:25.3]} 33... Rxf8 {[%clk 0:00:07.5]} 34. Bxf5+ {[%clk 0:00:25.7]} 34... Kh8
{[%clk 0:00:05.4]} 35. Qxd7 {[%clk 0:00:25.8]} 35... Bh2+ {[%clk 0:00:05.7]} 36.
Kg2 {[%clk 0:00:20]} 36... Qf4 {[%clk 0:00:06.6]} 37. Re8 {[%clk 0:00:20.1]} 1-0

[Event "Late-Titled-Tuesday-Blitz-April-30-2024"]
[Site "Chess.com"]
[Date "2024.04.30"]
[Round "11"]
[White "Shankland"]
[Black "ChristopherYoo"]
[Result "0-1"]
[WhiteElo "2965"]
[BlackElo "3039"]
[TimeControl "180+1"]
[EndTime "16:04:30 PDT"]
[Termination "ChristopherYoo won by resignation"]

1. d4 {[%clk 0:03:00.9]} 1... Nf6 {[%clk 0:02:58.5]} 2. c4 {[%clk 0:03:01.4]}
2... e6 {[%clk 0:02:58]} 3. Nc3 {[%clk 0:03:01.6]} 3... Bb4 {[%clk 0:02:56.5]}
4. Qc2 {[%clk 0:03:01.1]} 4... h6 {[%clk 0:02:51.1]} 5. e3 {[%clk 0:02:54.9]}
5... c5 {[%clk 0:02:42]} 6. Bd3 {[%clk 0:02:49.4]} 6... d5 {[%clk 0:02:36.1]} 7.
cxd5 {[%clk 0:02:40.9]} 7... exd5 {[%clk 0:02:33]} 8. dxc5 {[%clk 0:02:37.7]}
8... Nc6 {[%clk 0:02:30.9]} 9. Ne2 {[%clk 0:02:34.3]} 9... Bxc5 {[%clk
0:02:26.6]} 10. O-O {[%clk 0:02:32.9]} 10... O-O {[%clk 0:02:21]} 11. Rd1 {[%clk
0:02:17.6]} 11... Bd6 {[%clk 0:02:05.6]} 12. Nf4 {[%clk 0:02:07.1]} 12... Bxf4
{[%clk 0:01:57]} 13. exf4 {[%clk 0:02:08]} 13... d4 {[%clk 0:01:55.4]} 14. Ne4
{[%clk 0:02:01.3]} 14... Nb4 {[%clk 0:01:53.7]} 15. Nxf6+ {[%clk 0:01:56.1]}
15... Qxf6 {[%clk 0:01:52.9]} 16. Bh7+ {[%clk 0:01:56]} 16... Kh8 {[%clk
0:01:52.2]} 17. Qc5 {[%clk 0:01:56.6]} 17... Bg4 {[%clk 0:01:47.5]} 18. Rxd4
{[%clk 0:01:43.5]} 18... Na6 {[%clk 0:01:40]} 19. Qc3 {[%clk 0:01:24.9]} 19...
Kxh7 {[%clk 0:01:32.9]} 20. Be3 {[%clk 0:01:24.8]} 20... Rac8 {[%clk 0:01:26.4]}
21. Qa3 {[%clk 0:01:20.9]} 21... Rfd8 {[%clk 0:01:24]} 22. Rxd8 {[%clk
0:01:19.9]} 22... Rxd8 {[%clk 0:01:23.8]} 23. h3 {[%clk 0:01:20]} 23... Bf5
{[%clk 0:01:20.1]} 24. Rc1 {[%clk 0:01:12.1]} 24... Rc8 {[%clk 0:00:57.5]} 25.
Rd1 {[%clk 0:01:06.4]} 25... Qg6 {[%clk 0:00:48.2]} 26. Kh2 {[%clk 0:01:01.9]}
26... Be4 {[%clk 0:00:46.5]} 27. g4 {[%clk 0:00:58]} 27... Bc6 {[%clk
0:00:43.4]} 28. f5 {[%clk 0:00:51.2]} 28... Qf6 {[%clk 0:00:42.2]} 29. Bf4
{[%clk 0:00:47.1]} 29... Rd8 {[%clk 0:00:33]} 30. Rxd8 {[%clk 0:00:28]} 30...
Qxd8 {[%clk 0:00:33.1]} 31. Qe3 {[%clk 0:00:27.2]} 31... Qd5 {[%clk 0:00:27.8]}
32. Kg3 {[%clk 0:00:27.3]} 32... Nc5 {[%clk 0:00:23.2]} 33. f3 {[%clk
0:00:24.3]} 33... Nd3 {[%clk 0:00:23]} 34. Bb8 {[%clk 0:00:19.7]} 34... Nxb2
{[%clk 0:00:22.8]} 35. Bxa7 {[%clk 0:00:19.5]} 35... Nc4 {[%clk 0:00:22.5]} 36.
Qf4 {[%clk 0:00:19.3]} 36... Nd2 {[%clk 0:00:21.1]} 37. Be3 {[%clk 0:00:17.6]}
37... Nf1+ {[%clk 0:00:19.3]} 38. Kf2 {[%clk 0:00:17.4]} 38... Nxe3 {[%clk
0:00:20]} 39. Qxe3 {[%clk 0:00:17.2]} 39... Qxa2+ {[%clk 0:00:20.4]} 40. Kg3
{[%clk 0:00:17.8]} 40... Qd5 {[%clk 0:00:20.3]} 41. f4 {[%clk 0:00:18]} 41... b5
{[%clk 0:00:19.7]} 42. Qc3 {[%clk 0:00:16]} 42... Qg2+ {[%clk 0:00:18.7]} 43.
Kh4 {[%clk 0:00:15.1]} 43... Qf2+ {[%clk 0:00:19.3]} 44. Kh5 {[%clk 0:00:14.8]}
44... g6+ {[%clk 0:00:19.2]} 0-1